[Event "Championnat d'Europe Rapide"]
[Date "2024.12.07"]
[White "Krallis, Christos"]
[Black "Baidetskyi, Valentin"]
[WhiteElo "2383"]
[BlackElo "2519"]
[Round "3.33"]
[Result "0-1"]
[TimeControl "900+10"]

1. e4 {[%emt 00:00:03] [%clk 00:15:16]} e5 {[%emt 00:00:04] [%clk 00:15:16]} 2.
Nf3 {[%emt 00:00:13] [%clk 00:15:13]} Nc6 {[%emt 00:00:02] [%clk 00:15:25]} 3.
Bb5 {[%emt 00:01:14] [%clk 00:14:09]} a6 {[%emt 00:00:02] [%clk 00:15:33]} 4.
Ba4 {[%emt 00:00:02] [%clk 00:14:16]} Bc5 {[%emt 00:00:15] [%clk 00:15:29]} 5.
O-O {[%emt 00:00:52] [%clk 00:13:32]} Nge7 {[%emt 00:00:10] [%clk 00:15:31]} 6.
c3 {[%emt 00:00:21] [%clk 00:13:21]} Ng6 {[%emt 00:00:57] [%clk 00:14:44]} 7. d4
{[%emt 00:00:17] [%clk 00:13:14]} Ba7 {[%emt 00:00:03] [%clk 00:14:51]} 8. Kh1
{[%emt 00:02:51] [%clk 00:10:32]} O-O {[%emt 00:00:56] [%clk 00:14:06]} 9. Nxe5
{[%emt 00:00:10] [%clk 00:10:32]} Ngxe5 {[%emt 00:00:11] [%clk 00:14:05]} 10.
dxe5 {[%emt 00:00:02] [%clk 00:10:40]} Nxe5 {[%emt 00:00:02] [%clk 00:14:14]}
11. f4 {[%emt 00:00:07] [%clk 00:10:42]} Nc4 {[%emt 00:00:05] [%clk 00:14:20]}
12. Qh5 {[%emt 00:02:16] [%clk 00:08:36]} d5 {[%emt 00:01:07] [%clk 00:13:24]}
13. f5 {[%emt 00:01:53] [%clk 00:06:53]} f6 {[%emt 00:01:42] [%clk 00:11:52]}
14. Rf3 {[%emt 00:04:25] [%clk 00:02:38]} b5 {[%emt 00:01:09] [%clk 00:10:54]}
15. Rh3 {[%emt 00:00:05] [%clk 00:02:42]} bxa4 {[%emt 00:00:20] [%clk 00:10:45]}
16. Qxh7+ {[%emt 00:00:06] [%clk 00:02:46]} Kf7 {[%emt 00:00:01] [%clk
00:10:54]} 17. Bh6 {[%emt 00:00:44] [%clk 00:02:12]} Ke7 {[%emt 00:04:35] [%clk
00:06:29]} 18. Bxg7 {[%emt 00:00:06] [%clk 00:02:15]} Kd6 {[%emt 00:00:07] [%clk
00:06:32]} 19. Bxf8+ {[%emt 00:00:53] [%clk 00:01:32]} Qxf8 {[%emt 00:00:02]
[%clk 00:06:40]} 20. b3 {[%emt 00:00:43] [%clk 00:01:00]} Ne3 {[%emt 00:01:04]
[%clk 00:05:46]} 21. Nd2 {[%emt 00:00:20] [%clk 00:00:50]} Bb7 {[%emt 00:00:02]
[%clk 00:05:54]} 22. e5+ {[%emt 00:00:03] [%clk 00:00:57]} Kc6 {[%emt 00:01:20]
[%clk 00:04:44]} 23. Nf3 {[%emt 00:00:31] [%clk 00:00:35]} Ng4 {[%emt 00:00:24]
[%clk 00:04:30]} 24. Rh4 {[%emt 00:00:27] [%clk 00:00:17]} Nf2+ {[%emt 00:00:52]
[%clk 00:03:50]} 25. Kg1 {[%clk 00:00:26]} Ne4+ {[%emt 00:01:50] [%clk
00:02:10]} 26. Nd4+ {[%emt 00:00:01] [%clk 00:00:35]} Bxd4+ {[%emt 00:00:30]
[%clk 00:01:50]} 27. cxd4 {[%emt 00:00:01] [%clk 00:00:44]} Rc8 {[%emt 00:00:02]
[%clk 00:01:57]} 28. Rc1+ {[%emt 00:00:30] [%clk 00:00:24]} Kb6 {[%clk
00:02:07]} 29. Qh6 {[%emt 00:00:09] [%clk 00:00:24]} Qa3 {[%emt 00:00:29] [%clk
00:01:48]} 30. exf6 {[%emt 00:00:12] [%clk 00:00:22]} Rh8 {[%emt 00:00:24] [%clk
00:01:35]} 31. f7+ {[%emt 00:00:20] [%clk 00:00:12]} Rxh6 {[%emt 00:00:06] [%clk
00:01:39]} 32. Rxh6+ {[%emt 00:00:01] [%clk 00:00:21]} c6 {[%emt 00:00:11] [%clk
00:01:39]} 33. Rc5 {[%emt 00:00:11] [%clk 00:00:19]} Qb2 {[%emt 00:01:06] [%clk
00:00:43]} 34. h4 {[%emt 00:00:06] [%clk 00:00:23]} Qxd4+ {[%emt 00:00:05] [%clk
00:00:48]} 35. Kh2 {[%clk 00:00:33]} Qe5+ {[%emt 00:00:20] [%clk 00:00:38]} 36.
Kg1 {[%emt 00:00:11] [%clk 00:00:31]} Qxf5 {[%emt 00:00:07] [%clk 00:00:41]} 0-1

[Site "Europe Echecs"]

[Event "Championnat d'Europe Rapide"]
[Date "2024.12.07"]
[White "Dragnev, Valentin"]
[Black "Uruci, Endrit"]
[WhiteElo "2563"]
[BlackElo "2328"]
[Round "3.34"]
[Result "0-1"]
[TimeControl "900+10"]

1. e4 {[%emt 00:00:03] [%clk 00:15:18]} c5 {[%emt 00:00:02] [%clk 00:15:18]} 2.
Nf3 {[%emt 00:00:02] [%clk 00:15:25]} Nc6 {[%emt 00:00:02] [%clk 00:15:26]} 3.
Bb5 {[%emt 00:00:21] [%clk 00:15:15]} g6 {[%emt 00:00:30] [%clk 00:15:06]} 4.
O-O {[%emt 00:00:10] [%clk 00:15:14]} Bg7 {[%emt 00:00:03] [%clk 00:15:13]} 5.
Re1 {[%emt 00:00:04] [%clk 00:15:20]} Nf6 {[%emt 00:00:04] [%clk 00:15:19]} 6.
e5 {[%emt 00:00:36] [%clk 00:14:55]} Nd5 {[%emt 00:00:02] [%clk 00:15:26]} 7.
Nc3 {[%emt 00:00:05] [%clk 00:15:01]} Nc7 {[%emt 00:00:08] [%clk 00:15:28]} 8.
Bxc6 {[%emt 00:00:05] [%clk 00:15:06]} dxc6 {[%emt 00:00:43] [%clk 00:14:55]} 9.
d3 {[%emt 00:00:03] [%clk 00:15:13]} O-O {[%emt 00:00:18] [%clk 00:14:47]} 10.
h3 {[%emt 00:00:04] [%clk 00:15:19]} Ne6 {[%emt 00:00:08] [%clk 00:14:48]} 11.
a4 {[%emt 00:00:05] [%clk 00:15:25]} Nd4 {[%emt 00:01:02] [%clk 00:13:55]} 12.
a5 {[%emt 00:00:29] [%clk 00:15:06]} Be6 {[%emt 00:00:09] [%clk 00:13:55]} 13.
Nxd4 {[%emt 00:01:38] [%clk 00:13:39]} cxd4 {[%emt 00:01:32] [%clk 00:12:33]}
14. Ne4 {[%emt 00:00:32] [%clk 00:13:17]} Bd5 {[%emt 00:00:19] [%clk 00:12:24]}
15. Bf4 {[%emt 00:00:14] [%clk 00:13:13]} Bxe4 {[%emt 00:01:27] [%clk 00:11:07]}
16. Rxe4 {[%emt 00:00:03] [%clk 00:13:20]} Qd5 {[%emt 00:00:13] [%clk 00:11:04]}
17. a6 {[%emt 00:01:00] [%clk 00:12:30]} b6 {[%emt 00:00:53] [%clk 00:10:21]}
18. Qd2 {[%emt 00:00:08] [%clk 00:12:33]} Rfe8 {[%emt 00:00:38] [%clk 00:09:51]}
19. b3 {[%emt 00:00:47] [%clk 00:11:57]} Rad8 {[%emt 00:01:25] [%clk 00:08:36]}
20. Rae1 {[%emt 00:04:26] [%clk 00:07:42]} Qb5 {[%emt 00:00:58] [%clk 00:07:48]}
21. Bh6 {[%emt 00:01:26] [%clk 00:06:26]} Bh8 {[%emt 00:01:20] [%clk 00:06:37]}
22. h4 {[%emt 00:00:17] [%clk 00:06:20]} f5 {[%emt 00:02:36] [%clk 00:04:12]}
23. R4e2 {[%emt 00:01:58] [%clk 00:04:32]} Qd5 {[%emt 00:01:45] [%clk 00:02:37]}
24. e6 {[%emt 00:00:12] [%clk 00:04:29]} Bf6 {[%emt 00:00:23] [%clk 00:02:24]}
25. h5 {[%emt 00:00:18] [%clk 00:04:22]} Kh8 {[%emt 00:00:22] [%clk 00:02:13]}
26. hxg6 {[%emt 00:01:46] [%clk 00:02:45]} Rg8 {[%emt 00:00:09] [%clk 00:02:13]}
27. g7+ {[%emt 00:02:42] [%clk 00:00:14]} Bxg7 {[%emt 00:00:02] [%clk 00:02:22]}
28. Bxg7+ {[%emt 00:00:12] [%clk 00:00:13]} Rxg7 {[%emt 00:00:01] [%clk
00:02:30]} 29. g3 {[%emt 00:00:07] [%clk 00:00:16]} Rdg8 {[%emt 00:00:48] [%clk
00:01:52]} 30. Qf4 {[%emt 00:00:13] [%clk 00:00:13]} Rg4 {[%emt 00:00:36] [%clk
00:01:26]} 31. Qc7 {[%emt 00:00:07] [%clk 00:00:16]} f4 {[%emt 00:00:46] [%clk
00:00:50]} 32. Qxe7 {[%emt 00:00:05] [%clk 00:00:21]} Rxg3+ {[%emt 00:00:31]
[%clk 00:00:29]} 33. fxg3 {[%emt 00:00:04] [%clk 00:00:27]} Rxg3+ {[%emt
00:00:01] [%clk 00:00:37]} 0-1

[Site "Europe Echecs"]

[Event "Championnat d'Europe Rapide"]
[Date "2024.12.07"]
[White "Gaponenko, Inna"]
[Black "Beerdsen, Thomas"]
[WhiteElo "2343"]
[BlackElo "2502"]
[Round "3.35"]
[Result "0-1"]
[TimeControl "900+10"]

1. e4 {[%clk 00:15:18]} e5 {[%emt 00:00:02] [%clk 00:15:19]} 2. Nf3 {[%emt
00:00:02] [%clk 00:15:27]} Nc6 {[%emt 00:00:02] [%clk 00:15:27]} 3. d4 {[%emt
00:00:02] [%clk 00:15:35]} exd4 {[%emt 00:00:02] [%clk 00:15:35]} 4. Bc4 {[%emt
00:00:01] [%clk 00:15:43]} Nf6 {[%emt 00:00:04] [%clk 00:15:41]} 5. e5 {[%emt
00:00:02] [%clk 00:15:52]} d5 {[%emt 00:00:02] [%clk 00:15:49]} 6. Bb5 {[%emt
00:00:01] [%clk 00:16:01]} Nd7 {[%emt 00:00:02] [%clk 00:15:57]} 7. O-O {[%emt
00:00:05] [%clk 00:16:06]} Be7 {[%emt 00:00:03] [%clk 00:16:03]} 8. Bxc6 {[%emt
00:00:03] [%clk 00:16:14]} bxc6 {[%emt 00:00:02] [%clk 00:16:11]} 9. Nxd4 {[%emt
00:00:01] [%clk 00:16:23]} Nb8 {[%emt 00:00:03] [%clk 00:16:19]} 10. Nc3 {[%emt
00:00:07] [%clk 00:16:26]} O-O {[%emt 00:00:14] [%clk 00:16:15]} 11. Qf3 {[%emt
00:00:05] [%clk 00:16:31]} a5 {[%emt 00:00:34] [%clk 00:15:51]} 12. Bf4 {[%emt
00:01:59] [%clk 00:14:41]} a4 {[%emt 00:00:29] [%clk 00:15:32]} 13. a3 {[%emt
00:00:24] [%clk 00:14:28]} Be6 {[%emt 00:02:45] [%clk 00:12:55]} 14. Nce2 {[%emt
00:03:49] [%clk 00:10:51]} c5 {[%emt 00:00:07] [%clk 00:12:58]} 15. Nxe6 {[%emt
00:00:07] [%clk 00:10:54]} fxe6 {[%emt 00:00:01] [%clk 00:13:06]} 16. Qg4 {[%emt
00:00:01] [%clk 00:11:03]} Ra6 {[%emt 00:01:19] [%clk 00:11:57]} 17. Bh6 {[%emt
00:00:42] [%clk 00:10:30]} Rf7 {[%emt 00:00:07] [%clk 00:12:01]} 18. Nf4 {[%emt
00:00:05] [%clk 00:10:36]} Bf8 {[%emt 00:00:40] [%clk 00:11:30]} 19. Rad1 {[%emt
00:00:53] [%clk 00:09:54]} Qe8 {[%emt 00:00:37] [%clk 00:11:03]} 20. Rfe1 {[%emt
00:01:46] [%clk 00:08:18]} Rb6 {[%emt 00:00:59] [%clk 00:10:13]} 21. Rd3 {[%emt
00:00:24] [%clk 00:08:05]} Nd7 {[%emt 00:00:28] [%clk 00:09:55]} 22. Rg3 {[%emt
00:05:00] [%clk 00:03:15]} Kh8 {[%emt 00:04:20] [%clk 00:05:44]} 23. b3 {[%emt
00:02:25] [%clk 00:01:01]} Ra6 {[%emt 00:01:53] [%clk 00:04:01]} 24. bxa4 {[%emt
00:00:43] [%clk 00:00:29]} Rxa4 {[%emt 00:00:48] [%clk 00:03:23]} 25. Ng6+
{[%emt 00:00:14] [%clk 00:00:25]} hxg6 {[%emt 00:00:01] [%clk 00:03:32]} 26.
Qxa4 {[%emt 00:00:03] [%clk 00:00:32]} gxh6 {[%emt 00:00:01] [%clk 00:03:40]}
27. Rxg6 {[%emt 00:00:01] [%clk 00:00:40]} Rf5 {[%clk 00:03:49]} 28. Rg3 {[%emt
00:00:28] [%clk 00:00:23]} Qf7 {[%emt 00:00:01] [%clk 00:03:57]} 29. f3 {[%emt
00:00:18] [%clk 00:00:15]} Nxe5 {[%emt 00:00:20] [%clk 00:03:47]} 30. Qa7 {[%emt
00:00:12] [%clk 00:00:14]} Bd6 {[%emt 00:00:05] [%clk 00:03:51]} 31. a4 {[%emt
00:00:05] [%clk 00:00:19]} Kh7 {[%emt 00:00:07] [%clk 00:03:54]} 32. Qb7 {[%emt
00:00:15] [%clk 00:00:15]} Ng6 {[%emt 00:01:25] [%clk 00:02:38]} 33. a5 {[%emt
00:00:14] [%clk 00:00:12]} Bxg3 {[%emt 00:00:48] [%clk 00:02:00]} 34. hxg3
{[%clk 00:00:21]} c6 {[%clk 00:02:09]} 35. Qxc6 {[%emt 00:00:16] [%clk
00:00:15]} Ne5 {[%emt 00:01:08] [%clk 00:01:11]} 36. Qxc5 {[%emt 00:00:02] [%clk
00:00:23]} Qg7 {[%emt 00:00:23] [%clk 00:00:58]} 37. Kf2 {[%emt 00:00:16] [%clk
00:00:17]} d4 {[%emt 00:00:22] [%clk 00:00:46]} 38. Qb6 {[%emt 00:00:10] [%clk
00:00:17]} d3 {[%emt 00:00:07] [%clk 00:00:50]} 39. c3 {[%emt 00:00:17]} 0-1

[Site "Europe Echecs"]

[Event "Championnat d'Europe Rapide"]
[Date "2024.12.07"]
[White "Janik, Igor"]
[Black "Avramidou, Anastasia"]
[WhiteElo "2515"]
[BlackElo "2298"]
[Round "3.36"]
[Result "1-0"]
[TimeControl "900+10"]

1. e4 {[%emt 00:00:06] [%clk 00:15:14]} e5 {[%emt 00:00:06] [%clk 00:15:14]} 2.
Nf3 {[%emt 00:00:02] [%clk 00:15:22]} Nc6 {[%emt 00:00:02] [%clk 00:15:22]} 3.
Bc4 {[%emt 00:00:06] [%clk 00:15:26]} Bc5 {[%emt 00:00:05] [%clk 00:15:28]} 4.
O-O {[%emt 00:00:15] [%clk 00:15:21]} Nf6 {[%emt 00:00:15] [%clk 00:15:23]} 5.
d4 {[%emt 00:00:02] [%clk 00:15:29]} Bxd4 {[%emt 00:03:41] [%clk 00:11:53]} 6.
Nxd4 {[%emt 00:00:02] [%clk 00:15:37]} Nxd4 {[%emt 00:00:02] [%clk 00:12:01]} 7.
Bg5 {[%emt 00:00:01] [%clk 00:15:45]} h6 {[%emt 00:03:57] [%clk 00:08:15]} 8.
Bh4 {[%emt 00:00:01] [%clk 00:15:53]} g5 {[%emt 00:00:10] [%clk 00:08:16]} 9. f4
{[%emt 00:00:02] [%clk 00:16:02]} d5 {[%emt 00:04:04] [%clk 00:04:22]} 10. exd5
{[%emt 00:08:12] [%clk 00:08:00]} gxh4 {[%emt 00:02:15] [%clk 00:02:17]} 11.
fxe5 {[%emt 00:00:03] [%clk 00:08:06]} Nxd5 {[%emt 00:00:01] [%clk 00:02:25]}
12. Qxd4 {[%emt 00:00:02] [%clk 00:08:15]} Be6 {[%emt 00:00:02] [%clk 00:02:34]}
13. Nd2 {[%emt 00:00:45] [%clk 00:07:39]} Nb6 {[%emt 00:00:50] [%clk 00:01:54]}
14. Qxd8+ {[%emt 00:01:10] [%clk 00:06:40]} Rxd8 {[%emt 00:00:01] [%clk
00:02:02]} 15. Bd3 {[%clk 00:06:49]} h3 {[%emt 00:00:55] [%clk 00:01:18]} 16. g3
{[%emt 00:00:07] [%clk 00:06:53]} Nd5 {[%emt 00:01:05] [%clk 00:00:22]} 17. a3
{[%emt 00:00:01] [%clk 00:07:02]} Ne3 {[%emt 00:00:10] [%clk 00:00:23]} 18. Rf2
{[%emt 00:00:01] [%clk 00:07:11]} Ng4 {[%emt 00:00:13] [%clk 00:00:19]} 19. Re2
{[%emt 00:00:04] [%clk 00:07:18]} h5 {[%emt 00:00:10] [%clk 00:00:19]} 20. Nf3
{[%emt 00:00:09] [%clk 00:07:19]} Ke7 {[%emt 00:00:07] [%clk 00:00:21]} 21. Rf1
{[%emt 00:00:13] [%clk 00:07:16]} Rhg8 {[%emt 00:00:15] [%clk 00:00:17]} 22. Re4
{[%emt 00:02:01] [%clk 00:05:25]} c6 {[%emt 00:00:06] [%clk 00:00:21]} 23. Rf4
{[%emt 00:00:55] [%clk 00:04:41]} Rg7 {[%emt 00:00:08] [%clk 00:00:22]} 24. Re1
{[%emt 00:00:08] [%clk 00:04:43]} Rd5 {[%emt 00:00:13] [%clk 00:00:18]} 25. Rb4
{[%emt 00:00:31] [%clk 00:04:23]} b5 {[%emt 00:00:08] [%clk 00:00:21]} 26. Rf4
{[%emt 00:00:19] [%clk 00:04:14]} h4 {[%emt 00:00:13] [%clk 00:00:18]} 27. Be4
{[%emt 00:00:03] [%clk 00:04:21]} Rc5 {[%emt 00:00:03] [%clk 00:00:26]} 28. Nxh4
{[%emt 00:01:43] [%clk 00:02:47]} Nxe5 {[%emt 00:00:01] [%clk 00:00:34]} 29.
Nf5+ {[%emt 00:00:57] [%clk 00:02:01]} Bxf5 {[%emt 00:00:03] [%clk 00:00:42]}
30. Bxf5 {[%emt 00:00:01] [%clk 00:02:10]} f6 {[%emt 00:00:19] [%clk 00:00:32]}
31. Rf2 {[%emt 00:00:13] [%clk 00:02:07]} a5 {[%emt 00:00:25] [%clk 00:00:17]}
32. Bxh3 {[%emt 00:00:04] [%clk 00:02:13]} b4 {[%emt 00:00:01] [%clk 00:00:26]}
33. axb4 {[%emt 00:00:08] [%clk 00:02:15]} axb4 {[%emt 00:00:01] [%clk
00:00:34]} 34. Re4 {[%emt 00:00:01] [%clk 00:02:24]} Rb5 {[%emt 00:00:29] [%clk
00:00:15]} 35. Ref4 {[%emt 00:00:24] [%clk 00:02:11]} Rg6 {[%emt 00:00:05] [%clk
00:00:19]} 36. Rd2 {[%emt 00:00:17] [%clk 00:02:03]} b3 {[%emt 00:00:10] [%clk
00:00:20]} 37. c3 {[%emt 00:00:07] [%clk 00:02:06]} Ra5 {[%emt 00:00:14] [%clk
00:00:16]} 38. Bf1 {[%emt 00:00:06] [%clk 00:02:10]} Ra1 {[%emt 00:00:03] [%clk
00:00:23]} 39. Kg2 {[%emt 00:00:09] [%clk 00:02:11]} Rc1 {[%emt 00:00:15] [%clk
00:00:19]} 40. h3 {[%emt 00:01:47] [%clk 00:00:34]} Rg8 {[%emt 00:00:15] [%clk
00:00:14]} 41. Bc4 {[%emt 00:00:13] [%clk 00:00:31]} Rc2 {[%emt 00:00:10] [%clk
00:00:14]} 42. Rdf2 {[%emt 00:00:04] [%clk 00:00:37]} Nxc4 {[%emt 00:00:08]
[%clk 00:00:16]} 43. Rxc4 {[%emt 00:00:03] [%clk 00:00:44]} Rd8 {[%emt 00:00:05]
[%clk 00:00:20]} 44. Re4+ {[%emt 00:00:05] [%clk 00:00:50]} Kf7 {[%emt 00:00:07]
[%clk 00:00:23]} 45. Ref4 {[%emt 00:00:18] [%clk 00:00:42]} Rd6 {[%emt 00:00:18]
[%clk 00:00:14]} 46. g4 {[%emt 00:00:10] [%clk 00:00:42]} Kg7 {[%clk 00:00:23]}
47. R4f3 {[%emt 00:00:27] [%clk 00:00:25]} c5 {[%emt 00:00:17] [%clk 00:00:17]}
48. Kg3 {[%emt 00:00:04] [%clk 00:00:31]} Rxf2 {[%emt 00:00:12] [%clk 00:00:15]}
49. Rxf2 {[%emt 00:00:02] [%clk 00:00:40]} Rd3+ {[%emt 00:00:06] [%clk
00:00:19]} 50. Rf3 {[%emt 00:00:34] [%clk 00:00:16]} Rd2 {[%emt 00:00:04]} 51.
Rf2 Rd3+ {[%emt 00:00:01] [%clk 00:00:33]} 52. Kf4 {[%emt 00:00:20] [%clk
00:00:16]} Rxh3 {[%emt 00:00:02] [%clk 00:00:41]} 53. Ke4 {[%clk 00:00:26]} Rg3
{[%emt 00:00:14] [%clk 00:00:37]} 54. Kd5 {[%emt 00:00:04] [%clk 00:00:31]} Rxg4
{[%emt 00:00:03] [%clk 00:00:44]} 55. Kxc5 {[%emt 00:00:01] [%clk 00:00:40]} Kf7
{[%emt 00:00:31] [%clk 00:00:23]} 56. c4 {[%emt 00:00:12] [%clk 00:00:39]} Rg3
{[%emt 00:00:15] [%clk 00:00:17]} 57. Kb6 {[%emt 00:00:08] [%clk 00:00:41]} Ke7
{[%emt 00:00:09] [%clk 00:00:18]} 58. c5 {[%clk 00:00:51]} Rg4 {[%emt 00:00:11]
[%clk 00:00:17]} 59. Re2+ {[%emt 00:00:17] [%clk 00:00:44]} Kd8 {[%emt 00:00:09]
[%clk 00:00:17]} 60. Rd2+ {[%emt 00:00:13] [%clk 00:00:42]} Kc8 {[%emt 00:00:02]
[%clk 00:00:26]} 61. Rf2 {[%emt 00:00:03] [%clk 00:00:48]} Rc4 {[%emt 00:00:21]
[%clk 00:00:15]} 62. Rf3 {[%emt 00:00:29] [%clk 00:00:29]} f5 {[%emt 00:00:11]
[%clk 00:00:14]} 63. Rxb3 {[%emt 00:00:07]} f4 {[%clk 00:00:23]} 64. Kc6 {[%emt
00:00:04] [%clk 00:00:39]} Re4 {[%emt 00:00:08] [%clk 00:00:25]} 65. Rh3 {[%emt
00:00:01] [%clk 00:00:47]} Re6+ {[%emt 00:00:07] [%clk 00:00:28]} 66. Kd5 {[%emt
00:00:03] [%clk 00:00:54]} Re3 {[%emt 00:00:07] [%clk 00:00:32]} 67. Rh4 {[%emt
00:00:13] [%clk 00:00:52]} Rb3 {[%emt 00:00:21] [%clk 00:00:21]} 68. Rh2 {[%clk
00:01:01]} f3 {[%emt 00:00:06] [%clk 00:00:24]} 69. Kc4 {[%emt 00:00:03] [%clk
00:01:08]} Re3 {[%emt 00:00:02] [%clk 00:00:32]} 70. b4 {[%emt 00:00:02] [%clk
00:01:17]} Re2 {[%emt 00:00:02] [%clk 00:00:40]} 71. Rh8+ {[%emt 00:00:06] [%clk
00:01:21]} Kc7 {[%emt 00:00:17] [%clk 00:00:33]} 72. Rf8 {[%emt 00:00:01] [%clk
00:01:29]} f2 {[%emt 00:00:15] [%clk 00:00:28]} 73. Kb5 {[%clk 00:01:38]} Rb2
{[%emt 00:00:09] [%clk 00:00:29]} 74. Rf7+ {[%emt 00:00:09] [%clk 00:01:39]} Kd8
{[%emt 00:00:19] [%clk 00:00:21]} 75. c6 {[%clk 00:01:48]} Kc8 {[%emt 00:00:16]
[%clk 00:00:15]} 76. Kc5 {[%emt 00:00:04] [%clk 00:01:53]} Kd8 {[%emt 00:00:10]
[%clk 00:00:15]} 77. b5 {[%emt 00:00:03] [%clk 00:02:00]} Ke8 {[%emt 00:00:04]
[%clk 00:00:22]} 78. Rf3 {[%emt 00:00:09] [%clk 00:01:59]} Ke7 {[%emt 00:00:03]
[%clk 00:00:30]} 79. Kb6 {[%emt 00:00:04] [%clk 00:02:05]} Rc2 {[%emt 00:00:22]
[%clk 00:00:18]} 80. Kb7 {[%emt 00:00:05] [%clk 00:02:10]} Kd6 {[%emt 00:00:04]
[%clk 00:00:24]} 81. Kb6 {[%emt 00:01:21] [%clk 00:01:00]} Rb2 {[%emt 00:00:20]
[%clk 00:00:14]} 82. c7 {[%emt 00:00:15] [%clk 00:00:54]} Rc2 {[%emt 00:00:10]
[%clk 00:00:14]} 83. Rxf2 {[%emt 00:00:03] [%clk 00:01:02]} 1-0

[Site "Europe Echecs"]